[Event "*** Titled Tuesday Blitz"]
[Site "Chess.com"]
[Date "2020.05.05"]
[Round "4"]
[White "aa175"]
[Black "suneebaker"]
[Result "1-0"]
[WhiteElo "2403"]
[BlackElo "2178"]
[TimeControl "180+1"]
[EndTime "10:35:12 PDT"]
[Termination "aa175 won by resignation"]

1. d4 {[%clk 0:03:00.9]} 1... Nf6 {[%clk 0:02:58.6]} 2. Bf4 {[%clk 0:03:00.9]}
2... e6 {[%clk 0:02:57]} 3. e3 {[%clk 0:03:01.1]} 3... d5 {[%clk 0:02:55.5]} 4.
Nf3 {[%clk 0:02:59.5]} 4... Bd6 {[%clk 0:02:55.4]} 5. Bg3 {[%clk 0:02:57.1]}
5... c5 {[%clk 0:02:52.9]} 6. Nbd2 {[%clk 0:02:57.6]} 6... Nc6 {[%clk
0:02:52.8]} 7. c3 {[%clk 0:02:57.3]} 7... O-O {[%clk 0:02:51.2]} 8. Bd3 {[%clk
0:02:57.3]} 8... b6 {[%clk 0:02:51.1]} 9. e4 {[%clk 0:02:57.3]} 9... dxe4 {[%clk
0:02:49.7]} 10. Nxe4 {[%clk 0:02:57.2]} 10... Nxe4 {[%clk 0:02:46.8]} 11. Bxe4
{[%clk 0:02:58.1]} 11... Bb7 {[%clk 0:02:43.6]} 12. dxc5 {[%clk 0:02:56.9]}
12... Bxc5 {[%clk 0:02:42]} 13. Qa4 {[%clk 0:02:56.1]} 13... Qe8 {[%clk
0:02:25.6]} 14. Bxh7+ {[%clk 0:02:54.4]} 14... Kxh7 {[%clk 0:02:24.6]} 15. Qh4+
{[%clk 0:02:54.8]} 15... Kg6 {[%clk 0:02:14.4]} 16. Qg5+ {[%clk 0:02:54.6]}
16... Kh7 {[%clk 0:02:13.7]} 17. Qh5+ {[%clk 0:02:55.5]} 17... Kg8 {[%clk
0:02:13.8]} 18. Ng5 {[%clk 0:02:56.4]} 1-0

[Event "*** Titled Tuesday Blitz"]
[Site "Chess.com"]
[Date "2020.05.05"]
[Round "4"]
[White "kikydu96"]
[Black "Gurvich_Vitaly"]
[Result "1-0"]
[WhiteElo "2362"]
[BlackElo "2542"]
[TimeControl "180+1"]
[EndTime "10:35:18 PDT"]
[Termination "kikydu96 won by resignation"]

1. e4 {[%clk 0:03:00.9]} 1... c5 {[%clk 0:02:59.1]} 2. Nf3 {[%clk 0:02:57.7]}
2... Nc6 {[%clk 0:02:58.8]} 3. c3 {[%clk 0:02:56.9]} 3... Nf6 {[%clk 0:02:58]}
4. e5 {[%clk 0:02:56.6]} 4... Nd5 {[%clk 0:02:58.3]} 5. d4 {[%clk 0:02:57.1]}
5... cxd4 {[%clk 0:02:58.3]} 6. cxd4 {[%clk 0:02:58]} 6... d6 {[%clk 0:02:58.8]}
7. Bc4 {[%clk 0:02:58.2]} 7... e6 {[%clk 0:02:58.8]} 8. O-O {[%clk 0:02:57.5]}
8... Be7 {[%clk 0:02:57.9]} 9. Qe2 {[%clk 0:02:57.8]} 9... O-O {[%clk
0:02:57.3]} 10. Nc3 {[%clk 0:02:58.3]} 10... Nxc3 {[%clk 0:02:56.1]} 11. bxc3
{[%clk 0:02:59.2]} 11... Qc7 {[%clk 0:02:55.8]} 12. Bd3 {[%clk 0:02:58.1]} 12...
dxe5 {[%clk 0:02:55.4]} 13. dxe5 {[%clk 0:02:57.3]} 13... Rd8 {[%clk 0:02:55.8]}
14. Bf4 {[%clk 0:02:47.4]} 14... b6 {[%clk 0:02:52]} 15. h4 {[%clk 0:02:41.6]}
15... Bb7 {[%clk 0:02:51.6]} 16. Rad1 {[%clk 0:02:37.8]} 16... Na5 {[%clk
0:02:51.2]} 17. Ng5 {[%clk 0:02:26.7]} 17... Bxg5 {[%clk 0:02:42.5]} 18. Bxg5
{[%clk 0:02:23.9]} 18... Qxc3 {[%clk 0:02:41.8]} 19. Bxd8 {[%clk 0:02:22.2]}
19... Rxd8 {[%clk 0:02:40.8]} 20. Bxh7+ {[%clk 0:02:21.9]} 20... Kxh7 {[%clk
0:02:41.7]} 21. Qh5+ {[%clk 0:02:21.6]} 1-0

[Event "*** Titled Tuesday Blitz"]
[Site "Chess.com"]
[Date "2020.05.05"]
[Round "4"]
[White "KarstenHansch"]
[Black "chessuriel"]
[Result "0-1"]
[WhiteElo "2399"]
[BlackElo "2221"]
[TimeControl "180+1"]
[EndTime "10:35:26 PDT"]
[Termination "chessuriel won by resignation"]

1. e4 {[%clk 0:03:00.9]} 1... c5 {[%clk 0:02:59.8]} 2. Nf3 {[%clk 0:03:00.8]}
2... e6 {[%clk 0:03:00.2]} 3. c3 {[%clk 0:03:00]} 3... d5 {[%clk 0:02:59.6]} 4.
exd5 {[%clk 0:03:00.9]} 4... Qxd5 {[%clk 0:02:59.1]} 5. d4 {[%clk 0:02:59]} 5...
Nf6 {[%clk 0:02:58]} 6. Na3 {[%clk 0:02:49.9]} 6... cxd4 {[%clk 0:02:48.9]} 7.
cxd4 {[%clk 0:02:46.3]} 7... Bb4+ {[%clk 0:02:46.4]} 8. Bd2 {[%clk 0:02:45.7]}
8... Bxd2+ {[%clk 0:02:46.3]} 9. Qxd2 {[%clk 0:02:45.2]} 9... O-O {[%clk
0:02:45.8]} 10. Be2 {[%clk 0:02:43.5]} 10... Nc6 {[%clk 0:02:44.3]} 11. O-O
{[%clk 0:02:42.8]} 11... Rd8 {[%clk 0:02:41.1]} 12. Nb5 {[%clk 0:02:41.1]} 12...
Qd7 {[%clk 0:02:34.8]} 13. Rfd1 {[%clk 0:02:36.9]} 13... a6 {[%clk 0:02:33.4]}
14. Nc3 {[%clk 0:02:35.2]} 14... b5 {[%clk 0:02:31.4]} 15. Ne5 {[%clk
0:02:29.5]} 15... Nxe5 {[%clk 0:02:21.3]} 0-1

[Event "*** Titled Tuesday Blitz"]
[Site "Chess.com"]
[Date "2020.05.05"]
[Round "4"]
[White "ARMQUEEN"]
[Black "FMJoseHerrera"]
[Result "0-1"]
[WhiteElo "2343"]
[BlackElo "2587"]
[TimeControl "180+1"]
[EndTime "10:36:28 PDT"]
[Termination "FMJoseHerrera won by resignation"]

1. e4 {[%clk 0:03:00.9]} 1... c5 {[%clk 0:02:59.3]} 2. Nc3 {[%clk 0:03:00.4]}
2... e6 {[%clk 0:02:59.5]} 3. f4 {[%clk 0:02:59.6]} 3... a6 {[%clk 0:02:59.8]}
4. Nf3 {[%clk 0:02:59.1]} 4... Qc7 {[%clk 0:03:00.3]} 5. d4 {[%clk 0:02:58.6]}
5... cxd4 {[%clk 0:03:00.5]} 6. Nxd4 {[%clk 0:02:59.3]} 6... b5 {[%clk
0:02:59.6]} 7. Be3 {[%clk 0:02:58]} 7... Bb7 {[%clk 0:02:58.7]} 8. Bd3 {[%clk
0:02:57.3]} 8... d6 {[%clk 0:02:55.5]} 9. Nce2 {[%clk 0:02:57.3]} 9... Nf6
{[%clk 0:02:54.2]} 10. Ng3 {[%clk 0:02:56.9]} 10... h5 {[%clk 0:02:54.3]} 11. h4
{[%clk 0:02:56.3]} 11... Be7 {[%clk 0:02:49.9]} 12. O-O {[%clk 0:02:54.2]} 12...
Ng4 {[%clk 0:02:48.7]} 13. Qe2 {[%clk 0:02:53.9]} 13... Bxh4 {[%clk 0:02:45.5]}
14. Nxh5 {[%clk 0:02:50.2]} 14... Nxe3 {[%clk 0:02:25.8]} 15. Nxg7+ {[%clk
0:02:49.6]} 15... Ke7 {[%clk 0:02:26.5]} 16. Qxe3 {[%clk 0:02:48.9]} 16... Bf6
{[%clk 0:02:26.4]} 17. Ngf5+ {[%clk 0:02:37.2]} 17... exf5 {[%clk 0:02:25.8]}
18. Nxf5+ {[%clk 0:02:38.1]} 18... Kf8 {[%clk 0:02:24.4]} 19. Rae1 {[%clk
0:02:33.8]} 19... Nd7 {[%clk 0:02:13.2]} 20. c3 {[%clk 0:02:26.7]} 20... Re8
{[%clk 0:02:08.5]} 21. Qf3 {[%clk 0:02:23.6]} 21... Qc5+ {[%clk 0:01:56.4]} 22.
Rf2 {[%clk 0:02:23.1]} 22... Qxf5 {[%clk 0:01:53.2]} 23. exf5 {[%clk 0:02:15.6]}
23... Rxe1+ {[%clk 0:01:52.2]} 24. Rf1 {[%clk 0:02:15.9]} 24... Bxf3 {[%clk
0:01:52.3]} 25. Rxe1 {[%clk 0:02:16.2]} 25... Bd5 {[%clk 0:01:49.4]} 0-1

[Event "*** Titled Tuesday Blitz"]
[Site "Chess.com"]
[Date "2020.05.05"]
[Round "4"]
[White "mishanick"]
[Black "Balla_Tamas"]
[Result "1-0"]
[WhiteElo "2941"]
[BlackElo "2557"]
[TimeControl "180+1"]
[EndTime "10:36:39 PDT"]
[Termination "mishanick won by resignation"]

1. d4 {[%clk 0:02:46.2]} 1... Nf6 {[%clk 0:02:58.3]} 2. c4 {[%clk 0:02:45.5]}
2... g6 {[%clk 0:02:58]} 3. Nc3 {[%clk 0:02:45.2]} 3... Bg7 {[%clk 0:02:58.6]}
4. e4 {[%clk 0:02:45.3]} 4... O-O {[%clk 0:02:59]} 5. Be2 {[%clk 0:02:45.9]}
5... d6 {[%clk 0:02:59.1]} 6. Be3 {[%clk 0:02:46.2]} 6... a6 {[%clk 0:02:56.4]}
7. Nf3 {[%clk 0:02:45.3]} 7... Nbd7 {[%clk 0:02:47]} 8. O-O {[%clk 0:02:45.4]}
8... c5 {[%clk 0:02:43.6]} 9. d5 {[%clk 0:02:31]} 9... b5 {[%clk 0:02:41.8]} 10.
cxb5 {[%clk 0:02:30.6]} 10... axb5 {[%clk 0:02:41.3]} 11. Bxb5 {[%clk
0:02:31.2]} 11... Ba6 {[%clk 0:02:41.9]} 12. a4 {[%clk 0:02:31.1]} 12... Qa5
{[%clk 0:02:39.2]} 13. Nd2 {[%clk 0:02:28.3]} 13... Qb4 {[%clk 0:02:33.7]} 14.
Qc2 {[%clk 0:02:26.8]} 14... Rfb8 {[%clk 0:02:30.7]} 15. Nc4 {[%clk 0:01:58.2]}
15... Bxb5 {[%clk 0:02:13.8]} 16. Nxb5 {[%clk 0:01:59.1]} 16... Ng4 {[%clk
0:02:09.2]} 17. Bd2 {[%clk 0:01:55.3]} 1-0

[Event "*** Titled Tuesday Blitz"]
[Site "Chess.com"]
[Date "2020.05.05"]
[Round "4"]
[White "archess2"]
[Black "Al_Shima"]
[Result "0-1"]
[WhiteElo "2263"]
[BlackElo "2454"]
[TimeControl "180+1"]
[EndTime "10:36:47 PDT"]
[Termination "Al_Shima won by resignation"]

1. d4 {[%clk 0:03:00.9]} 1... b5 {[%clk 0:02:58.3]} 2. e4 {[%clk 0:02:56.9]}
2... Bb7 {[%clk 0:02:58.6]} 3. Bxb5 {[%clk 0:02:56]} 3... Bxe4 {[%clk
0:02:58.4]} 4. f3 {[%clk 0:02:56.5]} 4... Bb7 {[%clk 0:02:55]} 5. Ne2 {[%clk
0:02:56]} 5... Nf6 {[%clk 0:02:54.5]} 6. O-O {[%clk 0:02:54.9]} 6... e6 {[%clk
0:02:54.5]} 7. c4 {[%clk 0:02:53.8]} 7... Be7 {[%clk 0:02:47.1]} 8. Nbc3 {[%clk
0:02:52.9]} 8... O-O {[%clk 0:02:46.2]} 9. Bg5 {[%clk 0:02:50.2]} 9... h6 {[%clk
0:02:44.4]} 10. Bh4 {[%clk 0:02:49.8]} 10... c5 {[%clk 0:02:42.6]} 11. d5 {[%clk
0:02:45.3]} 11... Nxd5 {[%clk 0:02:39.6]} 12. Bxe7 {[%clk 0:02:28.2]} 12... Nxe7
{[%clk 0:02:40.5]} 13. Ne4 {[%clk 0:02:28.1]} 13... Bxe4 {[%clk 0:02:36.4]} 14.
fxe4 {[%clk 0:02:28.4]} 14... d6 {[%clk 0:02:35.8]} 15. Qd2 {[%clk 0:02:24.3]}
15... Qc7 {[%clk 0:02:05.5]} 16. Rad1 {[%clk 0:02:23.8]} 16... Rd8 {[%clk
0:02:02.1]} 17. Nf4 {[%clk 0:02:00.1]} 17... Nbc6 {[%clk 0:01:58.2]} 18. Bxc6
{[%clk 0:01:59.1]} 18... Nxc6 {[%clk 0:01:56.9]} 19. Nh5 {[%clk 0:01:56.1]}
19... Nd4 {[%clk 0:01:53.3]} 20. Qf2 {[%clk 0:01:52.3]} 20... Qe7 {[%clk
0:01:51]} 21. Qg3 {[%clk 0:01:49.3]} 21... Ne2+ {[%clk 0:01:50.5]} 0-1

[Event "*** Titled Tuesday Blitz"]
[Site "Chess.com"]
[Date "2020.05.05"]
[Round "4"]
[White "Danfii"]
[Black "Shivagami"]
[Result "1-0"]
[WhiteElo "2328"]
[BlackElo "2140"]
[TimeControl "180+1"]
[EndTime "10:37:01 PDT"]
[Termination "Danfii won by resignation"]

1. e4 {[%clk 0:03:00.2]} 1... c5 {[%clk 0:02:58.9]} 2. Nf3 {[%clk 0:03:00.1]}
2... d6 {[%clk 0:02:59.1]} 3. d4 {[%clk 0:03:00.6]} 3... cxd4 {[%clk 0:02:59.4]}
4. Nxd4 {[%clk 0:03:01.5]} 4... Nf6 {[%clk 0:03:00]} 5. Nc3 {[%clk 0:03:01.5]}
5... a6 {[%clk 0:03:00.4]} 6. Be3 {[%clk 0:03:01.3]} 6... e5 {[%clk 0:02:58.5]}
7. Nb3 {[%clk 0:03:01.4]} 7... Be6 {[%clk 0:02:56.7]} 8. h3 {[%clk 0:03:01.5]}
8... h5 {[%clk 0:02:53.6]} 9. Be2 {[%clk 0:03:00.7]} 9... Be7 {[%clk 0:02:52.9]}
10. O-O {[%clk 0:02:59.1]} 10... b5 {[%clk 0:02:45.5]} 11. a4 {[%clk 0:02:45.2]}
11... b4 {[%clk 0:02:41.4]} 12. Nd5 {[%clk 0:02:45.6]} 12... Nxe4 {[%clk
0:02:34]} 13. Bf3 {[%clk 0:02:41.3]} 13... Nc5 {[%clk 0:00:57]} 14. Nxc5 {[%clk
0:02:33.9]} 14... dxc5 {[%clk 0:00:54.1]} 15. Nxe7 {[%clk 0:02:34.4]} 15... Qxd1
{[%clk 0:00:46]} 16. Raxd1 {[%clk 0:02:31.8]} 1-0

[Event "*** Titled Tuesday Blitz"]
[Site "Chess.com"]
[Date "2020.05.05"]
[Round "4"]
[White "Boninknights"]
[Black "AlexZambrano"]
[Result "1-0"]
[WhiteElo "2142"]
[BlackElo "2274"]
[TimeControl "180+1"]
[EndTime "10:37:02 PDT"]
[Termination "Boninknights won by resignation"]

1. d4 {[%clk 0:02:59.5]} 1... Nf6 {[%clk 0:02:59.1]} 2. Nf3 {[%clk 0:02:58.7]}
2... g6 {[%clk 0:02:59.1]} 3. c4 {[%clk 0:02:58]} 3... d5 {[%clk 0:02:59.4]} 4.
cxd5 {[%clk 0:02:56.2]} 4... Nxd5 {[%clk 0:02:59.8]} 5. e4 {[%clk 0:02:55.7]}
5... Nb6 {[%clk 0:02:59.3]} 6. Nc3 {[%clk 0:02:54.7]} 6... Bg7 {[%clk
0:02:59.7]} 7. Be2 {[%clk 0:02:52.9]} 7... O-O {[%clk 0:03:00]} 8. O-O {[%clk
0:02:50.8]} 8... Bg4 {[%clk 0:03:00.3]} 9. Be3 {[%clk 0:02:46.2]} 9... Nc6
{[%clk 0:03:00.3]} 10. d5 {[%clk 0:02:44.5]} 10... Bxf3 {[%clk 0:03:00.4]} 11.
Bxf3 {[%clk 0:02:43.5]} 11... Ne5 {[%clk 0:03:00.9]} 12. Be2 {[%clk 0:02:41.9]}
12... Nec4 {[%clk 0:02:58.6]} 13. Bc1 {[%clk 0:02:40.1]} 13... c6 {[%clk
0:02:54.3]} 14. Qb3 {[%clk 0:02:35.7]} 14... cxd5 {[%clk 0:02:52.2]} 15. exd5
{[%clk 0:02:33.1]} 15... Nd6 {[%clk 0:02:48.5]} 16. Bf4 {[%clk 0:02:29.1]} 16...
Rc8 {[%clk 0:02:34.5]} 17. Rac1 {[%clk 0:02:25.6]} 17... Qd7 {[%clk 0:02:15.7]}
18. Rfe1 {[%clk 0:02:17.7]} 18... Rfd8 {[%clk 0:01:45.5]} 19. h3 {[%clk
0:02:12.6]} 19... a6 {[%clk 0:01:13.8]} 20. Qxb6 {[%clk 0:02:08.2]} 1-0

[Event "*** Titled Tuesday Blitz"]
[Site "Chess.com"]
[Date "2020.05.05"]
[Round "4"]
[White "tigra"]
[Black "Zq1"]
[Result "1-0"]
[WhiteElo "2798"]
[BlackElo "2552"]
[TimeControl "180+1"]
[EndTime "10:37:04 PDT"]
[Termination "tigra won by resignation"]

1. e4 {[%clk 0:03:00.9]} 1... c5 {[%clk 0:02:59.8]} 2. Nf3 {[%clk 0:03:01.2]}
2... d6 {[%clk 0:02:59.6]} 3. d4 {[%clk 0:03:01.9]} 3... cxd4 {[%clk 0:02:59.1]}
4. Nxd4 {[%clk 0:03:02.8]} 4... Nf6 {[%clk 0:02:59]} 5. Nc3 {[%clk 0:03:00.5]}
5... Nc6 {[%clk 0:02:58.9]} 6. Bg5 {[%clk 0:02:58.4]} 6... e6 {[%clk 0:02:59.1]}
7. Qd2 {[%clk 0:02:58]} 7... Be7 {[%clk 0:02:59.2]} 8. O-O-O {[%clk 0:02:57.6]}
8... Nxd4 {[%clk 0:02:59.2]} 9. Qxd4 {[%clk 0:02:57.7]} 9... a6 {[%clk
0:02:59.7]} 10. f4 {[%clk 0:02:55.4]} 10... b5 {[%clk 0:02:59.1]} 11. Bxf6
{[%clk 0:02:55.9]} 11... gxf6 {[%clk 0:02:48.9]} 12. Qe3 {[%clk 0:02:55.9]}
12... Qc7 {[%clk 0:02:45.2]} 13. f5 {[%clk 0:02:55.4]} 13... Qc5 {[%clk
0:02:43.7]} 14. Qh3 {[%clk 0:02:53.7]} 14... b4 {[%clk 0:02:37.5]} 15. Ne2
{[%clk 0:02:29.4]} 15... exf5 {[%clk 0:02:35]} 16. Qf3 {[%clk 0:02:27.5]} 16...
Bb7 {[%clk 0:02:04.2]} 17. Ng3 {[%clk 0:02:26.9]} 17... fxe4 {[%clk 0:01:58]}
18. Nxe4 {[%clk 0:02:26.4]} 18... Rc8 {[%clk 0:01:27.4]} 19. Bd3 {[%clk
0:02:18.1]} 19... Kf8 {[%clk 0:01:11.5]} 20. Nxc5 {[%clk 0:02:16.1]} 20... Bxf3
{[%clk 0:01:09.9]} 21. Nd7+ {[%clk 0:02:16.3]} 1-0

[Event "*** Titled Tuesday Blitz"]
[Site "Chess.com"]
[Date "2020.05.05"]
[Round "4"]
[White "sm_sharon"]
[Black "WiktoriaPOL"]
[Result "0-1"]
[WhiteElo "2199"]
[BlackElo "2030"]
[TimeControl "180+1"]
[EndTime "10:37:32 PDT"]
[Termination "WiktoriaPOL won by resignation"]

1. e4 {[%clk 0:01:56.9]} 1... c5 {[%clk 0:02:58.8]} 2. Nf3 {[%clk 0:01:56.5]}
2... d6 {[%clk 0:02:58.8]} 3. d4 {[%clk 0:01:56.6]} 3... cxd4 {[%clk 0:02:58.5]}
4. Nxd4 {[%clk 0:01:57.5]} 4... Nf6 {[%clk 0:02:58.7]} 5. Nc3 {[%clk 0:01:57.7]}
5... a6 {[%clk 0:02:58.9]} 6. Be3 {[%clk 0:01:57.7]} 6... e5 {[%clk 0:02:58.7]}
7. Nb3 {[%clk 0:01:57.2]} 7... Be6 {[%clk 0:02:58.1]} 8. Be2 {[%clk 0:01:57.4]}
8... Nbd7 {[%clk 0:02:56.3]} 9. g4 {[%clk 0:01:57.4]} 9... h6 {[%clk 0:02:42.4]}
10. h4 {[%clk 0:01:55.1]} 10... b5 {[%clk 0:02:39.5]} 11. Rg1 {[%clk 0:01:51.9]}
11... Nb6 {[%clk 0:02:38.1]} 12. a3 {[%clk 0:01:50.2]} 12... Nc4 {[%clk
0:02:35.8]} 13. Bxc4 {[%clk 0:01:49.3]} 13... bxc4 {[%clk 0:02:33.6]} 14. Nc1
{[%clk 0:01:44.6]} 14... Rb8 {[%clk 0:02:23.2]} 15. Rb1 {[%clk 0:01:43.4]} 15...
Qd7 {[%clk 0:02:09.8]} 16. g5 {[%clk 0:01:42.2]} 16... hxg5 {[%clk 0:02:08.3]}
17. hxg5 {[%clk 0:01:43.1]} 17... Ng4 {[%clk 0:02:07.7]} 18. N1e2 {[%clk
0:01:33.8]} 18... Nxe3 {[%clk 0:02:06.7]} 19. fxe3 {[%clk 0:01:34.7]} 19... Be7
{[%clk 0:02:01.5]} 20. Nd5 {[%clk 0:01:29]} 20... Bxd5 {[%clk 0:02:00.3]} 21.
exd5 {[%clk 0:01:24.8]} 21... Qa7 {[%clk 0:01:52.2]} 22. Qd2 {[%clk 0:01:22.6]}
22... Bd8 {[%clk 0:01:47.5]} 23. Nc3 {[%clk 0:01:20.7]} 23... Bb6 {[%clk
0:01:46.2]} 24. Ke2 {[%clk 0:01:19.1]} 24... Rh2+ {[%clk 0:01:43.7]} 0-1

[Event "*** Titled Tuesday Blitz"]
[Site "Chess.com"]
[Date "2020.05.05"]
[Round "4"]
[White "tioloko"]
[Black "CalinGheorghiu"]
[Result "1-0"]
[WhiteElo "2626"]
[BlackElo "2401"]
[TimeControl "180+1"]
[EndTime "10:37:41 PDT"]
[Termination "tioloko won by resignation"]

1. e4 {[%clk 0:03:00.9]} 1... e6 {[%clk 0:02:59.5]} 2. d4 {[%clk 0:02:59.4]}
2... d5 {[%clk 0:03:00]} 3. Nc3 {[%clk 0:02:59.9]} 3... Nf6 {[%clk 0:02:59.7]}
4. e5 {[%clk 0:02:59.2]} 4... Nfd7 {[%clk 0:03:00.2]} 5. f4 {[%clk 0:02:59.3]}
5... c5 {[%clk 0:02:59.9]} 6. Nf3 {[%clk 0:03:00.2]} 6... b6 {[%clk 0:02:58.6]}
7. Be3 {[%clk 0:02:58]} 7... Be7 {[%clk 0:02:58.4]} 8. Ne2 {[%clk 0:02:57.3]}
8... cxd4 {[%clk 0:02:51.3]} 9. Nexd4 {[%clk 0:02:56.8]} 9... Bb7 {[%clk
0:02:48.6]} 10. Be2 {[%clk 0:02:54.5]} 10... O-O {[%clk 0:02:46.2]} 11. O-O
{[%clk 0:02:53.4]} 11... Nc6 {[%clk 0:02:40.8]} 12. c3 {[%clk 0:02:52.7]} 12...
Nc5 {[%clk 0:02:38.3]} 13. Kh1 {[%clk 0:02:52.1]} 13... Ne4 {[%clk 0:02:31]} 14.
f5 {[%clk 0:02:52.2]} 14... Nxd4 {[%clk 0:02:13.8]} 15. Nxd4 {[%clk 0:02:53.1]}
15... Bg5 {[%clk 0:02:04.9]} 16. Qc1 {[%clk 0:02:40.9]} 16... Bxe3 {[%clk
0:01:55]} 17. Qxe3 {[%clk 0:02:41.8]} 17... Qg5 {[%clk 0:01:28.6]} 18. Rf4
{[%clk 0:02:40.5]} 18... Rae8 {[%clk 0:00:59.3]} 19. Rxe4 {[%clk 0:02:39.2]}
19... Qxe3 {[%clk 0:00:49.6]} 20. Rxe3 {[%clk 0:02:40.1]} 20... exf5 {[%clk
0:00:49.9]} 21. Nxf5 {[%clk 0:02:38.4]} 21... Re6 {[%clk 0:00:46.7]} 22. Nd4
{[%clk 0:02:34.8]} 22... Re7 {[%clk 0:00:44.9]} 23. Bf3 {[%clk 0:02:23.3]} 23...
Rfe8 {[%clk 0:00:44.3]} 24. Rae1 {[%clk 0:02:20.8]} 24... a6 {[%clk 0:00:43.4]}
25. Nf5 {[%clk 0:02:18]} 25... Re6 {[%clk 0:00:43]} 26. Nd6 {[%clk 0:02:16.9]}
1-0

[Event "*** Titled Tuesday Blitz"]
[Site "Chess.com"]
[Date "2020.05.05"]
[Round "4"]
[White "Artem_Koval"]
[Black "AwesomeMango"]
[Result "1-0"]
[WhiteElo "2436"]
[BlackElo "2235"]
[TimeControl "180+1"]
[EndTime "10:37:48 PDT"]
[Termination "Artem_Koval won by resignation"]

1. e4 {[%clk 0:03:00.4]} 1... c5 {[%clk 0:02:59.6]} 2. Nf3 {[%clk 0:03:00]} 2...
d6 {[%clk 0:02:59.6]} 3. d4 {[%clk 0:02:59.8]} 3... cxd4 {[%clk 0:02:59.6]} 4.
Nxd4 {[%clk 0:03:00.7]} 4... Nf6 {[%clk 0:02:59.8]} 5. Nc3 {[%clk 0:03:01.1]}
5... a6 {[%clk 0:02:59.9]} 6. f4 {[%clk 0:03:01.4]} 6... e5 {[%clk 0:02:59.6]}
7. Nf3 {[%clk 0:03:01]} 7... Nbd7 {[%clk 0:02:59.5]} 8. Bd3 {[%clk 0:02:59.9]}
8... Be7 {[%clk 0:02:58.3]} 9. O-O {[%clk 0:02:59.3]} 9... O-O {[%clk
0:02:57.8]} 10. Kh1 {[%clk 0:02:59.2]} 10... b5 {[%clk 0:02:54.4]} 11. a3 {[%clk
0:02:59.2]} 11... Bb7 {[%clk 0:02:54]} 12. Qe2 {[%clk 0:02:59.6]} 12... Rc8
{[%clk 0:02:51.9]} 13. Bd2 {[%clk 0:02:59.9]} 13... Qc7 {[%clk 0:02:36.6]} 14.
Rae1 {[%clk 0:02:59.8]} 14... exf4 {[%clk 0:02:35.1]} 15. Bxf4 {[%clk
0:02:59.6]} 15... Ne5 {[%clk 0:02:35]} 16. Qf2 {[%clk 0:02:53.7]} 16... Ng6
{[%clk 0:02:13]} 17. Bg5 {[%clk 0:02:48.3]} 17... Ng4 {[%clk 0:02:10]} 18. Qd2
{[%clk 0:02:42.2]} 18... N4e5 {[%clk 0:02:07.1]} 19. Bxe7 {[%clk 0:02:32.3]}
19... Qxe7 {[%clk 0:02:06.1]} 20. Nd5 {[%clk 0:02:26.6]} 20... Bxd5 {[%clk
0:02:03.6]} 21. exd5 {[%clk 0:02:27.5]} 21... Qc7 {[%clk 0:01:57.7]} 22. Bxg6
{[%clk 0:02:24.8]} 22... Nxg6 {[%clk 0:01:56.8]} 23. c3 {[%clk 0:02:24.8]} 23...
Rfe8 {[%clk 0:01:55.8]} 24. h3 {[%clk 0:02:21.4]} 24... Qc4 {[%clk 0:01:51.3]}
25. Qg5 {[%clk 0:02:05.3]} 25... h6 {[%clk 0:01:46.8]} 26. Qf5 {[%clk
0:02:03.4]} 26... Nh4 {[%clk 0:01:18.6]} 27. Nxh4 {[%clk 0:01:59.9]} 27... Rxe1
{[%clk 0:01:06.4]} 28. Qxf7+ {[%clk 0:01:58.4]} 28... Kh7 {[%clk 0:01:04.4]} 29.
Rxe1 {[%clk 0:01:54]} 29... Qxh4 {[%clk 0:01:03.2]} 30. Qf5+ {[%clk 0:01:54]}
1-0

[Event "*** Titled Tuesday Blitz"]
[Site "Chess.com"]
[Date "2020.05.05"]
[Round "4"]
[White "dukicz123"]
[Black "Pechen_Yeltsina"]
[Result "0-1"]
[WhiteElo "2491"]
[BlackElo "2724"]
[TimeControl "180+1"]
[EndTime "10:37:49 PDT"]
[Termination "Pechen_Yeltsina won by checkmate"]

1. e4 {[%clk 0:03:00.9]} 1... g6 {[%clk 0:03:00.2]} 2. d4 {[%clk 0:03:00.6]}
2... Bg7 {[%clk 0:03:00.7]} 3. Nc3 {[%clk 0:03:01.3]} 3... d6 {[%clk 0:03:01.2]}
4. f4 {[%clk 0:03:01.7]} 4... a6 {[%clk 0:03:01.4]} 5. Nf3 {[%clk 0:03:02.3]}
5... b5 {[%clk 0:03:01.6]} 6. Bd3 {[%clk 0:03:02.9]} 6... Bb7 {[%clk 0:03:02.1]}
7. a4 {[%clk 0:03:03.2]} 7... b4 {[%clk 0:03:02.2]} 8. Ne2 {[%clk 0:03:03.5]}
8... Nd7 {[%clk 0:03:02.7]} 9. O-O {[%clk 0:03:00.9]} 9... c5 {[%clk 0:03:02.6]}
10. c3 {[%clk 0:03:01.2]} 10... bxc3 {[%clk 0:03:02.3]} 11. bxc3 {[%clk
0:03:02.1]} 11... cxd4 {[%clk 0:03:01.6]} 12. cxd4 {[%clk 0:03:01.5]} 12... Ngf6
{[%clk 0:03:01.6]} 13. e5 {[%clk 0:02:58.6]} 13... Ne4 {[%clk 0:02:43.3]} 14.
Rb1 {[%clk 0:02:42.7]} 14... Qc7 {[%clk 0:02:32.6]} 15. Qb3 {[%clk 0:02:10.9]}
15... Rb8 {[%clk 0:02:26.3]} 16. e6 {[%clk 0:02:11.1]} 16... fxe6 {[%clk
0:02:26.7]} 17. Qxe6 {[%clk 0:02:10.9]} 17... Ndf6 {[%clk 0:02:25]} 18. Bc4
{[%clk 0:01:52.9]} 18... d5 {[%clk 0:02:09.9]} 19. Bxa6 {[%clk 0:01:52.5]} 19...
Bxa6 {[%clk 0:02:09.9]} 20. Rxb8+ {[%clk 0:01:51.6]} 20... Qxb8 {[%clk
0:02:10.8]} 21. Qxa6 {[%clk 0:01:52.1]} 21... O-O {[%clk 0:02:11.1]} 22. Qe6+
{[%clk 0:01:48.6]} 22... Kh8 {[%clk 0:02:11.4]} 23. Ne5 {[%clk 0:01:49.2]} 23...
Nd6 {[%clk 0:02:08.5]} 24. Ba3 {[%clk 0:01:48.1]} 24... Nfe4 {[%clk 0:02:07.5]}
25. Nd7 {[%clk 0:01:43.5]} 25... Qb3 {[%clk 0:02:03.3]} 26. Bc1 {[%clk
0:01:32.8]} 26... Rc8 {[%clk 0:01:59.2]} 27. Nc5 {[%clk 0:01:12.4]} 27... Qc4
{[%clk 0:01:58.7]} 28. Nxe4 {[%clk 0:00:55.8]} 28... Qxe2 {[%clk 0:01:58.2]} 29.
Ng5 {[%clk 0:00:54.4]} 29... Bxd4+ {[%clk 0:01:58.4]} 30. Kh1 {[%clk 0:00:54.9]}
30... Qxf1# {[%clk 0:01:58.2]} 0-1